bitfinex/quotes_ETHUSD_20220115
["timestamp","ask_amount","ask_price","bid_price","bid_amount"]
[1642226853426,1.20113685,3306.9,3306.6,2.68818714]
[1642226853826,1.20113685,3306.9,3306.7,2.71129953]
[1642226854526,1.20113685,3306.9,3306.7,2.6849805]
[1642226855228,1.20113685,3306.9,3306.6,2.68818714]
[1642226855627,1.20113685,3306.9,3306.7,2.6628726]
[1642226855829,1.20113685,3306.9,3306.6,1.24254813]
[1642226856127,1.20113685,3306.9,3306.7,2.6794714]
[1642226856871,1.20113685,3306.9,3306.7,2.66997419]
[1642226857071,1.20113685,3306.9,3306.6,1.24254813]
[1642226857977,1.20113685,3306.9,3306.6,3.92378575]
[1642226858177,1.20113685,3306.9,3306.6,3.91836145]
[1642226858372,1.20113685,3306.9,3306.6,3.90869283]
[1642226859377,1.20113685,3306.9,3306.6,3.92235352]
[1642226859573,1.20113685,3306.9,3306.6,3.9060091]
[1642226859777,1.20113685,3306.9,3306.6,1.24254813]
[1642226861326,1.20113685,3306.9,3306.7,2.66568333]
[1642226861528,1.20113685,3306.9,3306.6,1.24254813]
[1642226861926,1.20113685,3306.9,3306.7,2.68453361]
[1642226862528,1.20113685,3306.9,3306.6,1.24254813]
[1642226863126,1.20113685,3306.9,3306.7,2.73268052]
[1642226863428,1.20113685,3306.9,3306.7,2.72257121]
[1642226863827,1.20113685,3306.9,3306.8,2.6966717]
[1642226864027,1.20113685,3306.9,3306.6,1.24254813]
[1642226864482,1.20113685,3306.9,3306.7,2.65292342]
[1642226864675,1.20113685,3306.9,3306.7,2.64701911]
[1642226864878,1.20113685,3306.9,3306.6,1.24254813]
[1642226865281,0.045463,3306.8,3306.6,1.24254813]
[1642226865576,0.045463,3306.7,3306.6,1.24254813]
[1642226865977,1.20113685,3306.9,3306.6,1.24254813]
[1642226867278,1.20113685,3306.9,3306.4,2.86134213]
[1642226867680,1.20113685,3306.9,3306.5,0.00113685]
[1642226868131,1.20113685,3306.9,3306.5,2.58603279]
[1642226868528,1.24659985,3306.9,3306.5,2.58603279]
[1642226868727,0.045463,3306.8,3306.5,2.58603279]
[1642226868927,0.045463,3306.7,3306.5,4.0559476]
[1642226869127,1.24659985,3306.9,3306.5,2.58603279]
[1642226869329,0.045463,3306.8,3306.5,2.58603279]
[1642226869530,0.045463,3306.6,3306.5,2.58603279]
[1642226869929,0.045463,3306.6,3306.5,0.00113685]
[1642226870932,1.20113685,3306.9,3306.5,0.00113685]
[1642226870933,0.045463,3306.8,3306.5,0.00113685]
[1642226871131,1.20113685,3306.9,3306.5,2.74051369]
[1642226871888,1.24659985,3306.9,3306.5,2.74051369]
[1642226872390,1.24659985,3306.9,3306.6,2.58489594]
[1642226873390,1.24659985,3306.9,3306.5,2.78820172]
[1642226873391,1.24659985,3306.9,3306.7,2.68467798]
[1642226873589,1.24659985,3306.9,3306.5,2.89098485]
[1642226873791,0.00170527,3306.8,3306.5,2.89098485]
[1642226873990,0.00170527,3306.8,3306.5,2.88966485]
[1642226874191,0.00113685,3306.7,3306.5,2.88966485]
[1642226874391,0.00113685,3306.7,3306.4,1.53654518]
[1642226874591,0.04716827,3306.8,3306.4,1.53654518]
[1642226874991,0.00113685,3306.7,3306.4,1.53654518]
[1642226875391,0.04659985,3306.7,3306.4,1.53654518]
[1642226875639,0.045463,3306.6,3306.4,1.53654518]
[1642226875829,0.045463,3306.6,3306.3,4.62593894]
[1642226876427,0.045463,3306.6,3306.4,2.6540886]
[1642226876628,0.00113685,3306.7,3306.4,2.6540886]
[1642226878236,0.04659985,3306.7,3306.4,2.6540886]
[1642226878429,0.04659985,3306.7,3306.4,2.68273042]
[1642226878630,0.045463,3306.6,3306.4,2.68273042]
[1642226878830,0.00113685,3306.7,3306.4,2.68273042]
[1642226879478,1.245463,3306.9,3306.4,2.68273042]
[1642226879479,1.09159985,3306.9,3306.4,2.68273042]
[1642226880577,1.09159985,3306.9,3306.8,1.18710724]
[1642226880978,1.0927367,3306.9,3306.8,1.18710724]
[1642226881178,1.0472737,3306.9,3306.8,1.18710724]
[1642226881477,1.0927367,3306.9,3306.8,1.18710724]
[1642226881877,0.04659985,3306.9,3306.8,1.18710724]
[1642226885129,0.04659985,3306.9,3306.4,1.1412]
[1642226885529,0.045463,3306.8,3306.4,1.1412]
[1642226885729,0.045463,3306.7,3306.4,1.1412]
[1642226886331,0.04659985,3306.9,3306.5,1.29433857]
[1642226886531,0.00113685,3306.9,3306.5,1.29433857]
[1642226886730,0.00113685,3306.9,3306.6,2.67324675]
[1642226886981,0.04659985,3306.9,3306.6,2.65578225]
[1642226887381,0.00113685,3306.9,3306.6,2.65578225]
[1642226889684,0.00113685,3306.9,3306.7,2.58507837]
[1642226891134,1.10113685,3306.9,3306.7,2.58507837]
[1642226892330,0.045463,3306.8,3306.7,2.58507837]
[1642226892931,1.10113685,3306.9,3306.7,2.58507837]
[1642226893531,1.10113685,3306.9,3306.6,2.58507837]
[1642226893736,1.10113685,3306.9,3306.6,5.24787529]
[1642226893932,1.10113685,3306.9,3306.6,2.58507837]
[1642226896386,1.10113685,3306.9,3306.6,5.26963851]
[1642226896784,1.14659985,3306.9,3306.6,2.58507837]
[1642226897188,1.10113685,3306.9,3306.6,5.20471269]
[1642226897384,1.10113685,3306.9,3306.7,2.58507837]
[1642226897786,1.14659985,3306.9,3306.7,2.58507837]
[1642226897985,0.045463,3306.8,3306.7,2.58507837]
[1642226898430,1.10113685,3306.9,3306.7,2.58507837]
[1642226898632,1.14659985,3306.9,3306.7,2.58507837]
[1642226899037,1.10113685,3306.9,3306.7,2.58507837]
[1642226899231,1.10113685,3306.9,3306.6,2.58507837]
[1642226900033,1.10113685,3306.9,3306.8,2.58507837]
[1642226900432,1.14659985,3306.9,3306.8,2.58507837]
[1642226900631,1.14659985,3306.9,3306.6,2.58507837]
[1642226900833,0.045463,3306.7,3306.6,2.58507837]
[1642226901033,1.14659985,3306.9,3306.6,2.58507837]
[1642226901437,1.14659985,3306.9,3306.8,2.58507837]
[1642226902582,1.14659985,3306.9,3306.6,2.58507837]
[1642226902783,1.10113685,3306.9,3306.6,2.58507837]
[1642226903380,1.10113685,3306.9,3306.8,2.58507837]
[1642226903782,1.14659985,3306.9,3306.8,2.58507837]
[1642226903982,1.14659985,3306.9,3306.7,2.58507837]
[1642226904581,1.10113685,3306.9,3306.7,2.58507837]
[1642226904782,0.045463,3306.8,3306.7,2.58507837]
[1642226904983,0.045463,3306.8,3306.6,2.58507837]
[1642226905184,1.10113685,3306.9,3306.6,2.58507837]
[1642226905385,0.045463,3306.7,3306.6,2.58507837]
[1642226905635,0.045463,3306.8,3306.6,2.58507837]
[1642226906230,1.14659985,3306.9,3306.6,2.58507837]
[1642226907036,0.045463,3306.7,3306.6,2.58507837]
[1642226907230,1.10113685,3306.9,3306.6,2.58507837]
[1642226908131,1.14659985,3306.9,3306.6,2.58507837]
[1642226908331,1.14659985,3306.9,3306.5,2.58507837]
[1642226909030,0.045463,3306.8,3306.5,2.58507837]
[1642226909231,0.045463,3306.6,3306.5,2.58507837]
[1642226909691,0.045463,3306.7,3306.5,2.58507837]
[1642226909887,0.045463,3306.7,3306.5,3.10245534]
[1642226910087,1.14659985,3306.9,3306.5,3.10245534]
[1642226910887,1.145463,3306.9,3306.5,3.10245534]
[1642226911289,1.145463,3306.9,3306.6,2.58507837]
[1642226911490,1.1,3306.9,3306.6,2.58507837]
[1642226911890,0.045463,3306.8,3306.6,2.58507837]
[1642226912089,0.045463,3306.7,3306.6,2.58507837]
[1642226912488,0.045463,3306.7,3306.5,2.58507837]
[1642226912889,0.045463,3306.6,3306.5,2.58507837]
[1642226913138,0.045463,3306.6,3306.4,1.1412]
[1642226913333,0.045463,3306.5,3306.4,1.1412]
[1642226913732,0.045463,3306.5,3306.4,1.14290527]
[1642226915334,0.045463,3306.6,3306.4,1.14290527]
[1642226915534,0.045463,3306.8,3306.4,1.14290527]
[1642226915734,1.145463,3306.9,3306.5,0.00113685]
[1642226916434,0.045463,3306.8,3306.5,0.00113685]
[1642226916633,1.145463,3306.9,3306.5,0.00113685]
[1642226916884,0.045463,3306.6,3306.5,0.00113685]
[1642226922837,1.25365282,3306.6,3306.5,0.00113685]
[1642226923036,0.045463,3306.6,3306.5,0.00113685]
[1642226923737,0.045463,3306.6,3306.1,0.00341054]
[1642226924038,0.045463,3306.3,3306.1,0.00341054]
[1642226924683,0.045463,3306.5,3306.1,0.00341054]
[1642226924883,1.37595711,3306.6,3306.0,0.00397896]
[1642226925086,0.045463,3306.5,3306.0,0.00397896]
[1642226925684,1.33049411,3306.6,3306.0,0.00397896]
[1642226925883,1.37595711,3306.6,3306.0,0.00397896]
[1642226926084,0.045463,3306.5,3306.0,0.00397896]
[1642226926383,0.045463,3306.3,3306.0,0.00397896]
[1642226926983,0.045463,3306.5,3306.0,0.00397896]
[1642226927285,1.37595711,3306.6,3306.0,0.00397896]
[1642226927584,1.33049411,3306.6,3306.0,0.00397896]
[1642226928441,0.045463,3306.5,3306.0,0.00397896]
[1642226928639,0.045463,3306.3,3306.0,0.00397896]
[1642226928939,0.045463,3306.2,3306.0,0.00397896]
[1642226929139,0.045463,3306.4,3306.1,2.58538204]
[1642226929339,0.045463,3306.2,3306.1,2.58538204]
[1642226930839,0.045463,3306.2,3306.0,2.58538204]
[1642226931042,0.045463,3306.1,3306.0,2.58538204]
[1642226931443,0.045463,3306.1,3306.0,2.589361]
[1642226931639,1.52672141,3306.1,3306.0,2.589361]
[1642226932086,2.52672141,3306.1,3306.0,2.589361]
[1642226932283,1.52672141,3306.1,3306.0,2.589361]
[1642226932484,2.52672141,3306.1,3306.0,2.589361]
[1642226933385,1.045463,3306.1,3306.0,2.589361]
[1642226933584,1.1,3306.2,3306.0,2.589361]
[1642226933585,1.145463,3306.2,3306.0,2.589361]
[1642226933987,1.145463,3306.2,3306.1,0.00341054]
[1642226934587,1.145463,3306.2,3306.1,2.58879258]
[1642226934787,1.145463,3306.2,3306.1,4.03423559]
[1642226934987,1.1,3306.2,3306.1,4.03423559]
[1642226935398,1.1,3306.2,3306.1,1.44885355]
[1642226936252,1.1,3306.2,3306.1,4.03423559]
[1642226936852,1.190926,3306.2,3306.1,4.03423559]
[1642226937055,1.145463,3306.2,3306.1,4.03423559]
[1642226937254,1.1,3306.2,3306.1,4.03423559]
[1642226937454,1.145463,3306.2,3306.1,4.03423559]
[1642226937654,1.1,3306.2,3306.1,4.03423559]
[1642226938354,1.145463,3306.2,3306.1,4.03423559]
[1642226938754,1.1,3306.2,3306.1,4.03423559]
[1642226938955,1.145463,3306.2,3306.1,4.03423559]
[1642226939493,1.145463,3306.2,3306.1,6.79808355]
[1642226939689,1.1,3306.2,3306.1,6.79808355]
[1642226942190,1.1,3306.2,3306.1,4.03423559]
[1642226943338,1.1,3306.2,3306.1,6.75800748]
[1642226947895,1.145463,3306.2,3306.1,4.03423559]
[1642226948092,1.1,3306.2,3306.1,4.03423559]
[1642226948491,1.1,3306.2,3306.1,6.75564252]
[1642226955382,1.0,3307.3,3306.2,4.65]
[1642226955584,1.5121982,3308.8,3306.4,4.4]
[1642226955585,1.0,3308.0,3306.4,4.4]
[1642226955785,0.00284212,3307.2,3306.7,0.75601]
[1642226956188,0.0022737,3307.1,3306.8,1.1748]
[1642226956584,0.00170527,3307.0,3306.8,1.1748]
[1642226956983,0.00113685,3306.9,3306.8,1.1748]
[1642226957385,0.00113685,3306.9,3306.8,2.53569893]
[1642226958436,0.00113685,3306.9,3306.8,5.12108097]
[1642226961993,1.10113685,3306.9,3306.8,5.12108097]
[1642226962192,1.10113685,3306.9,3306.8,3.94628097]
[1642226962992,0.00113685,3306.9,3306.8,2.58538204]
[1642226964295,0.00113685,3306.9,3306.5,4.13103685]
[1642226964296,1.22486058,3306.9,3306.5,0.00113685]
[1642226964491,0.3,3306.8,3306.5,0.00113685]
[1642226964691,1.22486058,3306.9,3306.4,0.00170527]
[1642226965092,0.00113685,3306.9,3306.4,0.00170527]
[1642226965737,0.00113685,3306.9,3306.4,2.5873522]
[1642226966138,0.00113685,3306.9,3306.5,0.00113685]
[1642226967740,0.00113685,3306.9,3306.5,2.58678378]
[1642226976988,0.00113685,3306.9,3306.5,0.00113685]
[1642226979390,0.00113685,3306.9,3306.1,0.00341054]
[1642226979589,1.25823944,3306.7,3306.1,1.14366298]
[1642226980093,1.25823944,3306.7,3306.2,0.00284212]
[1642226980291,0.00113685,3306.9,3306.2,0.00284212]
[1642226981138,0.00113685,3306.9,3306.2,2.58848905]
[1642226981537,1.45727666,3306.7,3306.3,0.00227369]
[1642226981937,1.75727666,3306.7,3306.3,0.00227369]
[1642226982137,1.41329392,3306.5,3306.3,0.00227369]
[1642226982744,2.80249392,3306.5,3306.3,0.00227369]
[1642226983139,4.45,3306.4,3306.3,0.00227369]
[1642226983538,4.45,3306.4,3306.1,0.00341054]
[1642226983838,1.7565,3306.4,3306.1,0.00341054]
[1642226984899,3.18024575,3306.4,3305.8,0.00511581]
[1642226986702,3.25670365,3306.4,3305.8,0.00511581]
[1642226987102,1.8329579,3306.4,3305.7,0.00568423]
[1642226987304,1.7565,3306.4,3305.7,0.00568423]
[1642226987602,1.0,3306.4,3305.7,0.00568423]
[1642226988005,2.01329392,3306.5,3305.7,0.00568423]
[1642226988841,2.01329392,3306.5,3305.8,2.58614376]
[1642226989242,2.01329392,3306.5,3305.9,0.00454739]
[1642226990242,0.7565,3306.4,3305.9,0.00454739]
[1642226990546,1.7565,3306.4,3305.9,0.00454739]
[1642226991540,1.7565,3306.4,3305.3,0.00795793]
[1642226993289,1.7565,3306.4,3305.4,2.58622624]
[1642226993691,1.7565,3306.4,3305.5,0.00682108]
[1642226994992,1.7565,3306.4,3305.6,2.58622624]
[1642226995393,1.7565,3306.4,3305.7,0.00568423]
[1642226995843,1.8329579,3306.4,3305.7,0.00568423]
[1642226996054,1.7565,3306.4,3305.3,0.00795793]
[1642226996544,1.41329392,3306.5,3305.9,0.045463]
[1642226996744,1.41329392,3306.5,3306.4,0.045463]
[1642226997142,1.41329392,3306.5,3306.4,0.00170527]
[1642226997745,1.71329392,3306.5,3306.4,0.00170527]
[1642226997945,2.01329392,3306.5,3306.4,0.00170527]
[1642226998547,2.01329392,3306.5,3305.5,0.00682108]
[1642226998748,2.08975182,3306.5,3305.5,0.00682108]
[1642226998952,0.6,3306.5,3306.2,1.36056966]
[1642226999148,0.3,3306.6,3306.2,1.36056966]
[1642226999396,1.12061682,3306.7,3306.5,0.045463]
[1642226999590,0.82061682,3306.7,3306.5,0.045463]
[1642226999789,1.12061682,3306.7,3306.5,0.045463]
[1642227000189,2.05403131,3306.7,3306.5,0.045463]
[1642227000390,2.05403131,3306.7,3306.3,0.00227369]
[1642227000797,2.13048921,3306.7,3306.5,0.045463]
[1642227000989,3.55438489,3306.7,3306.5,0.045463]
[1642227001390,4.15438489,3306.7,3306.5,0.045463]
[1642227001591,1.0,3306.6,3306.3,0.00227369]
[1642227001991,1.3,3306.6,3306.1,0.00341054]
[1642227004243,4.11422422,3306.6,3306.1,2.58931729]
[1642227004443,1.3,3306.6,3306.1,2.58931729]
[1642227004643,1.3,3306.6,3306.2,0.00284212]
[1642227004845,1.3764579,3306.6,3306.2,0.00284212]
[1642227005045,4.19473622,3306.6,3306.2,0.00284212]
[1642227005848,4.1924495,3306.6,3306.2,0.00284212]
[1642227006646,4.1924495,3306.6,3305.8,0.00511581]
[1642227007290,4.1924495,3306.6,3305.8,2.58590675]
[1642227007691,4.1924495,3306.6,3305.9,0.00454739]
[1642227007893,1.3764579,3306.6,3305.9,0.00454739]
[1642227008695,1.3764579,3306.6,3305.8,0.00511581]
[1642227008890,1.3764579,3306.6,3306.0,2.58590675]
[1642227009391,1.0764579,3306.6,3306.1,0.00341054]
[1642227009592,1.3764579,3306.6,3306.1,0.00341054]
[1642227009893,0.0764579,3306.6,3306.1,0.00341054]
[1642227010494,0.0764579,3306.6,3306.1,2.58931729]
[1642227010945,0.0764579,3306.6,3306.2,0.00284212]
[1642227012951,1.0,3307.1,3306.2,0.00284212]
[1642227012952,1.70489011,3307.3,3306.3,1.4238337]
[1642227013247,0.00170527,3307.0,3306.4,0.00170527]
[1642227013651,0.00113685,3306.9,3306.4,0.00170527]
[1642227013856,0.00113685,3306.9,3306.4,2.58761202]
[1642227014049,0.0022737,3307.1,3306.4,2.58761202]
[1642227014248,0.0022737,3307.1,3306.5,0.00113685]
[1642227014497,1.0787316,3307.1,3306.5,0.00113685]
[1642227014693,0.0787316,3307.1,3306.5,0.00113685]
[1642227014891,1.0787316,3307.1,3306.5,0.00113685]
[1642227015092,0.0787316,3307.1,3306.5,0.00113685]
[1642227015291,1.3165222,3307.0,3306.5,0.00113685]
[1642227015491,2.6728822,3307.0,3306.5,0.00113685]
[1642227015792,0.07759475,3306.9,3306.2,0.00284212]
[1642227019644,0.07759475,3306.9,3306.2,2.58874887]
[1642227020043,0.07759475,3306.9,3306.3,0.00227369]
[1642227020645,0.00113685,3306.9,3306.3,0.00227369]
[1642227020845,0.00113685,3306.9,3306.2,0.00284212]
[1642227021450,0.00113685,3306.9,3306.2,2.58874887]
[1642227021904,0.00113685,3306.9,3306.3,0.00227369]
[1642227022694,0.07759475,3306.9,3306.3,0.00227369]
[1642227022894,0.07759475,3306.9,3306.2,0.00284212]
[1642227023495,0.75642,3306.8,3306.2,0.00284212]
[1642227023694,1.05642,3306.8,3306.2,0.00284212]
[1642227023894,1.4328779,3306.8,3306.2,0.00284212]
[1642227025094,0.6764579,3306.8,3306.2,0.00284212]
[1642227025294,0.3764579,3306.8,3306.2,0.00284212]
[1642227026847,0.6764579,3306.8,3306.2,0.00284212]
[1642227031490,0.6,3306.8,3306.2,0.00284212]
[1642227032790,0.6764579,3306.8,3306.2,0.00284212]
[1642227033640,0.6764579,3306.8,3306.1,0.00341054]
[1642227034544,0.0764579,3306.8,3306.1,0.00341054]
[1642227034738,0.6764579,3306.8,3306.2,0.045463]
[1642227035139,0.6764579,3306.8,3306.3,0.00227369]
[1642227035639,0.3764579,3306.8,3306.3,0.00227369]
[1642227037096,0.6764579,3306.8,3306.3,0.00227369]
[1642227037492,0.3764579,3306.8,3306.3,0.00227369]
[1642227037693,0.3764579,3306.8,3306.1,0.00341054]
[1642227039395,0.0764579,3306.8,3306.1,0.00341054]
[1642227039698,0.0764579,3306.8,3306.2,0.045463]
[1642227040096,0.0764579,3306.8,3306.3,0.00227369]
[1642227041545,1.8893879,3306.8,3306.3,0.00227369]
[1642227041745,2.1893879,3306.8,3306.1,0.00341054]
[1642227042646,0.75642,3306.7,3306.1,0.00341054]
[1642227042846,1.6764579,3306.8,3306.1,0.00341054]
[1642227043046,0.0764579,3306.7,3306.1,0.00341054]
[1642227043846,0.8328879,3306.7,3306.1,0.00341054]
[1642227044046,1.1328879,3306.7,3306.1,0.00341054]
[1642227044247,1.4328879,3306.7,3306.1,0.00341054]
[1642227048542,1.3092872,3306.5,3306.1,0.00341054]
[1642227048943,1.9092872,3306.5,3306.1,2.58938381]
[1642227049346,0.6,3306.5,3306.2,0.00284212]
[1642227049643,0.3,3306.5,3306.2,0.00284212]
[1642227049844,0.6,3306.6,3306.2,0.00284212]
[1642227050050,2.4328879,3306.7,3306.1,0.00341054]
[1642227050344,0.0764579,3306.6,3306.1,0.00341054]
[1642227053696,0.0764579,3306.6,3306.1,2.58938075]
[1642227054096,0.0764579,3306.6,3306.2,0.00284212]
[1642227055396,0.0764579,3306.6,3306.0,1.1399]
[1642227055397,0.0764579,3306.6,3306.1,0.00341054]
[1642227055842,0.0764579,3306.6,3306.1,2.58936516]
[1642227056242,0.0764579,3306.6,3306.2,0.00284212]
[1642227057643,0.3,3306.9,3306.4,0.045463]
[1642227058143,0.6,3307.1,3306.5,0.00113685]
[1642227058344,6.21,3307.6,3306.9,0.045463]
[1642227058544,6.21,3307.6,3307.3,1.45284458]
[1642227058946,0.00454739,3307.5,3307.3,1.45284458]
[1642227059401,0.00397897,3307.4,3307.3,1.45284458]
[1642227059593,0.00397897,3307.4,3307.3,2.57984458]
[1642227062596,0.00397897,3307.4,3307.3,2.53438158]
[1642227064745,0.00397897,3307.4,3307.3,1.127]
[1642227065650,0.00397897,3307.4,3307.3,2.67643887]
[1642227067494,1.12006896,3308.2,3307.4,5.65]
[1642227067695,6.21,3309.0,3308.1,0.045463]
[1642227067893,6.21,3309.0,3308.7,0.045463]
[1642227068092,0.02395448,3309.7,3308.7,0.045463]
[1642227068298,6.21,3309.8,3309.4,0.045463]
[1642227068695,1.27567534,3309.5,3309.4,0.045463]
[1642227069094,1.28761223,3309.5,3308.8,1.45716767]
[1642227069495,0.01136846,3309.4,3308.8,1.45716767]
[1642227069895,0.01080004,3309.3,3308.8,1.45716767]
[1642227070094,0.01080004,3309.3,3308.7,0.045463]
[1642227070295,0.01023162,3309.2,3308.7,0.045463]
[1642227070742,0.00966319,3309.1,3308.7,0.045463]
[1642227071143,0.00909477,3309.0,3308.7,1.18327353]
[1642227071542,0.00852635,3308.9,3308.7,1.18327353]
[1642227071942,1.87567534,3309.5,3308.7,1.18327353]
[1642227071943,0.00795792,3308.8,3308.7,1.18327353]
[1642227072143,0.00795792,3308.8,3308.7,2.68953726]
[1642227072543,0.00795792,3308.8,3308.7,0.045463]
[1642227072742,0.00795792,3308.8,3308.5,4.494163]
[1642227072941,0.00795792,3308.8,3308.5,4.4487]
[1642227073142,0.0073895,3308.7,3308.5,4.4487]
[1642227073546,0.00682108,3308.6,3308.5,4.4487]
[1642227074993,0.00682108,3308.6,3308.5,1.1927]
[1642227075798,0.00682108,3308.6,3308.2,4.0919]
[1642227076198,0.00625265,3308.5,3308.0,0.13819997]
[1642227076595,1.3895646,3308.3,3308.0,0.13819997]
[1642227076996,0.00454738,3308.2,3308.0,0.13819997]
[1642227077496,0.00397896,3308.1,3308.0,0.13819997]
[1642227079547,0.00397896,3308.1,3308.0,0.18366297]
[1642227083104,0.00397896,3308.1,3307.8,0.045463]
[1642227083302,0.00397896,3308.1,3307.6,1.2461]
[1642227083502,0.07986844,3308.0,3307.6,1.2461]
[1642227083702,0.00341054,3308.0,3307.6,1.2461]
[1642227083905,0.01246639,3308.5,3307.6,1.2461]
[1642227083906,0.00284211,3307.9,3307.6,1.2461]
[1642227084303,0.00227369,3307.8,3307.7,1.22443948]
[1642227085105,0.00227369,3307.8,3307.6,1.2461]
[1642227085502,0.00170527,3307.7,3307.6,1.2461]
[1642227086344,0.00170527,3307.7,3307.5,1.26986878]
[1642227086745,0.00113684,3307.6,3307.5,1.26986878]
[1642227090498,0.00113684,3307.6,3307.5,0.09825161]
[1642227090899,0.00113684,3307.6,3307.3,4.4249]
[1642227091102,0.00113684,3307.6,3307.0,1.1861]
[1642227091103,0.36495333,3307.6,3307.0,1.1861]
[1642227091300,3.76731507,3307.5,3307.0,1.1861]
[1642227091500,1.47084429,3307.3,3307.1,0.00170527]
[1642227091804,4.02073973,3307.2,3307.1,0.00170527]
[1642227092002,4.02073973,3307.2,3306.8,0.00341055]
[1642227092200,5.02073973,3307.2,3306.8,0.00341055]
[1642227092400,1.0,3307.1,3306.8,0.00341055]
[1642227092599,4.14330267,3307.0,3306.8,0.00341055]
[1642227092802,4.14330267,3307.0,3306.7,0.00397897]
[1642227093000,1.3,3306.9,3306.7,0.00397897]
[1642227093846,2.05638,3306.9,3306.5,0.00511582]
[1642227094550,1.05638,3306.9,3306.5,0.00511582]
[1642227095045,2.05638,3306.9,3306.5,0.00511582]
[1642227096904,1.3,3306.9,3306.5,0.00511582]
[1642227097106,0.3,3306.9,3306.5,0.00511582]
[1642227097499,1.6,3307.1,3306.5,0.00511582]
[1642227097900,1.6,3307.1,3306.6,0.045463]
[1642227098199,0.3,3307.2,3306.7,0.00397897]
[1642227098400,0.3,3307.0,3306.7,0.04944197]
[1642227098600,1.3,3307.4,3306.7,0.04944197]
[1642227098899,1.6,3307.4,3306.9,1.14995766]
[1642227099299,2.92338538,3307.3,3307.0,0.0022737]
[1642227099499,0.3,3307.3,3307.0,0.0022737]
[1642227099704,1.0,3307.2,3306.8,0.00341055]
[1642227099907,0.3,3307.2,3306.8,0.00341055]
[1642227100099,1.0,3307.2,3306.8,0.00341055]
[1642227100298,1.6,3307.4,3306.8,0.00341055]
[1642227100499,2.98702231,3307.3,3306.8,0.00341055]
[1642227100749,4.04331231,3307.3,3306.8,0.00341055]
[1642227100945,1.0,3307.2,3306.7,0.00397897]
[1642227101346,1.3,3307.2,3306.7,0.00397897]
[1642227101546,1.3,3307.2,3306.7,1.26227189]
[1642227101948,0.3,3307.2,3306.8,0.00341055]
[1642227102151,1.05629,3307.3,3306.8,0.00341055]
[1642227102152,4.1803935,3307.3,3306.8,0.00341055]
[1642227102352,4.1803935,3307.3,3306.7,0.00397897]
[1642227102548,1.0,3307.2,3306.7,0.00397897]
[1642227103149,1.35629,3307.3,3306.7,0.00397897]
[1642227104801,4.16339969,3307.3,3306.7,0.00397897]
[1642227105005,1.35629,3307.3,3306.7,0.00397897]
[1642227105301,1.0,3307.2,3306.7,0.00397897]
[1642227105501,1.35629,3307.3,3306.7,0.00397897]
[1642227105703,1.0,3307.2,3306.7,0.00397897]
[1642227105901,1.35629,3307.3,3306.7,0.04944197]
[1642227106201,1.35629,3307.3,3306.8,0.00341055]
[1642227106401,0.6,3307.3,3306.8,0.04887355]
[1642227106801,1.6,3307.5,3306.9,0.00284212]
[1642227108248,1.6,3307.5,3307.0,0.045463]
[1642227108945,1.6,3307.5,3306.9,0.00284212]
[1642227109546,1.6,3307.5,3306.8,0.00341055]
[1642227109748,0.75628,3307.3,3306.8,0.00341055]
[1642227109947,1.05628,3307.3,3306.8,0.00341055]
[1642227110146,1.51288,3307.1,3306.6,0.00454739]
[1642227110349,1.51288,3307.1,3306.1,0.00738951]
[1642227110350,2.11288,3307.1,3306.1,0.00738951]
[1642227110548,0.0764579,3307.0,3306.1,0.00738951]
[1642227110750,2.11288,3307.1,3306.5,1.4305833]
[1642227111147,3.11288,3307.1,3306.6,0.05001039]
[1642227111346,0.6,3307.1,3306.6,0.05001039]
[1642227111546,0.3,3307.0,3306.8,0.045463]
[1642227112009,1.35632,3307.2,3306.9,0.00284212]
[1642227112606,1.35632,3307.2,3306.7,0.00397897]
[1642227113708,1.35632,3307.2,3306.7,1.44048169]
[1642227114109,1.35632,3307.2,3306.8,0.00341055]
[1642227115511,1.35632,3307.2,3306.7,0.00397897]
[1642227115755,0.6,3307.2,3306.7,0.04944197]
[1642227115951,1.0,3307.4,3307.1,0.045463]
[1642227116150,0.00113684,3307.6,3307.3,0.045463]
[1642227116450,0.00113684,3307.6,3307.5,0.045463]
[1642227117050,0.00113684,3307.6,3307.5,1.21103646]
[1642227117351,0.3,3307.8,3307.5,1.25649946]
[1642227117549,2.80292117,3308.1,3307.5,1.25649946]
[1642227117749,0.00170527,3307.7,3307.6,0.045463]
[1642227119604,0.00170527,3307.7,3307.5,0.045463]
[1642227119902,0.00113684,3307.6,3307.5,0.045463]
[1642227123750,0.00113684,3307.6,3307.5,3.845463]
[1642227123951,0.00113684,3307.6,3307.5,6.95006818]
[1642227128407,0.00113684,3307.6,3307.5,3.845463]
[1642227129208,0.00113684,3307.6,3307.5,6.913063]
[1642227130407,0.00113684,3307.6,3307.5,9.63903736]
[1642227133449,0.00113684,3307.6,3307.5,6.57143736]
[1642227134600,0.00113684,3307.6,3307.5,3.845463]
[1642227134803,0.00113684,3307.6,3307.5,0.045463]
[1642227136003,0.00113684,3307.6,3307.5,2.63035719]
[1642227137707,0.00113684,3307.6,3307.5,7.89542928]
[1642227139051,0.00113684,3307.6,3307.5,2.63035719]
[1642227139256,0.00113684,3307.6,3307.5,2.58489419]
[1642227139952,0.00113684,3307.6,3307.5,2.63035719]
[1642227141051,0.00113684,3307.6,3307.5,5.27232197]
[1642227141452,0.00113684,3307.6,3307.5,2.63035719]
[1642227142305,0.00113684,3307.6,3307.5,5.34253982]
[1642227142509,0.00113684,3307.6,3307.5,5.38776224]
[1642227145867,0.00113684,3307.6,3307.5,2.63035719]
[1642227146267,0.00113684,3307.6,3307.5,5.32665588]
[1642227150204,0.31231334,3308.8,3307.5,5.32665588]
[1642227150405,0.01231334,3308.8,3308.3,1.44729348]
[1642227150605,0.0073895,3308.7,3308.6,0.045463]
[1642227151906,0.0073895,3308.7,3308.5,0.045463]
[1642227152107,0.0073895,3308.7,3308.4,1.1522]
[1642227152411,0.00682108,3308.6,3308.4,1.1522]
[1642227152808,0.00625265,3308.5,3308.4,1.1522]
[1642227153255,0.00852635,3308.5,3308.4,1.1522]
[1642227154558,0.00852635,3308.5,3308.4,3.73676201]
[1642227159906,0.00852635,3308.5,3308.4,1.1522]
[1642227181813,0.00852635,3308.5,3308.4,5.09479648]
[1642227182013,0.00852635,3308.5,3308.4,9.64479648]
[1642227182212,0.00852635,3308.5,3308.4,6.776863]
[1642227182414,0.00852635,3308.5,3308.4,9.64479648]
[1642227182611,0.00852635,3308.5,3308.4,9.36105231]
[1642227182812,0.00852635,3308.5,3308.4,12.22898579]
[1642227183259,0.027278,3309.6,3308.4,12.22898579]
[1642227183260,0.027278,3309.6,3309.4,1.34979273]